bitfinex-derivatives/quotes_BTCF0:USTF0_20241221
["timestamp","ask_amount","ask_price","bid_price","bid_amount"]
[1734754308664,4e-05,97409.0,97408.0,0.34113952]
[1734754308961,4e-05,97409.0,97408.0,0.34413952]
[1734754309263,4e-05,97409.0,97408.0,0.34813952]
[1734754309457,4e-05,97409.0,97408.0,0.34513952]
[1734754309659,4e-05,97409.0,97408.0,0.34713952]
[1734754311261,0.0654,97411.0,97408.0,0.29578152]
[1734754311455,0.0654,97411.0,97410.0,0.051357]
[1734754312464,0.0654,97411.0,97410.0,0.34113852]
[1734754312870,0.0654,97411.0,97410.0,0.34413852]
[1734754313365,0.0654,97411.0,97410.0,0.34613852]
[1734754313566,0.00205313,97412.0,97410.0,0.34613852]
[1734754315262,0.00205313,97412.0,97410.0,0.34313852]
[1734754315461,0.00205313,97412.0,97411.0,0.28978152]
[1734754316962,0.00205313,97412.0,97411.0,0.60031914]
[1734754317672,0.00205313,97412.0,97411.0,0.60231914]
[1734754318260,0.00205313,97412.0,97411.0,0.29478152]
[1734754320376,1.3e-07,97412.0,97411.0,0.29478152]
[1734754320571,0.00359147,97428.0,97420.0,0.051352]
[1734754320873,0.0324,97447.0,97434.0,0.051345]
[1734754320874,0.14948627,97435.0,97434.0,0.051345]
[1734754321469,0.14948627,97438.0,97437.0,0.051343]
[1734754321662,0.14948627,97438.0,97437.0,0.412143]
[1734754322870,0.15548627,97438.0,97437.0,0.413143]
[1734754323375,0.006,97438.0,97437.0,0.70292452]
[1734754323564,0.0306,97457.0,97437.0,0.65158152]
[1734754323761,0.0306,97457.0,97456.0,0.412133]
[1734754325569,0.0302,97466.0,97465.0,0.051328]
[1734754325769,0.033,97472.0,97465.0,0.3608]
[1734754326067,0.033,97472.0,97471.0,0.051325]
[1734754327678,0.035,97472.0,97471.0,0.051325]
[1734754327868,0.3608,97497.0,97471.0,0.051325]
[1734754328075,0.0621,97498.0,97491.0,0.3608]
[1734754328373,0.0621,97498.0,97496.0,0.051311]
[1734754329280,0.0324,97497.0,97496.0,0.051311]
[1734754329667,0.0324,97497.0,97496.0,0.052311]
[1734754330672,0.0324,97497.0,97496.0,0.053311]
[1734754331267,0.0324,97497.0,97496.0,0.052311]
[1734754332071,0.3932,97497.0,97496.0,0.001]
[1734754334073,0.0324,97497.0,97496.0,0.001]
[1734754335174,0.3932,97497.0,97496.0,0.001]
[1734754338376,0.0324,97497.0,97496.0,0.052312]
[1734754338580,0.0324,97497.0,97496.0,0.413112]
[1734754338890,0.3608,97508.0,97507.0,0.051306]
[1734754340185,0.3608,97508.0,97507.0,0.06142571]
[1734754340981,0.3608,97508.0,97507.0,0.06242571]
[1734754341175,0.3608,97517.0,97516.0,0.051301]
[1734754341983,0.032,97523.0,97516.0,0.051301]
[1734754342686,0.032,97523.0,97517.0,0.0513]
[1734754343190,0.032,97523.0,97514.0,0.3608]
[1734754343191,0.032,97523.0,97522.0,0.051298]
[1734754343387,0.3608,97532.0,97514.0,0.3608]
[1734754343589,0.3608,97532.0,97522.0,0.20227444]
[1734754343890,0.3608,97532.0,97529.0,0.051294]
[1734754344392,0.3608,97532.0,97530.0,0.051294]
[1734754345785,0.3608,97532.0,97530.0,0.052294]
[1734754346392,0.0308,97533.0,97530.0,0.052294]
[1734754347793,0.0308,97533.0,97530.0,0.051294]
[1734754347990,0.0308,97533.0,97530.0,0.052294]
[1734754348781,0.0308,97533.0,97530.0,0.001]
[1734754349396,0.051293,97531.0,97530.0,0.001]
[1734754353899,0.412093,97531.0,97530.0,0.001]
[1734754354495,0.412093,97531.0,97522.0,0.18368404]
[1734754354698,0.412098,97523.0,97522.0,0.18368404]
[1734754355696,0.3608,97523.0,97515.0,0.18368404]
[1734754355902,0.051301,97517.0,97515.0,0.18368404]
[1734754356104,0.00264002,97516.0,97515.0,0.18368404]
[1734754356400,0.00264002,97516.0,97515.0,0.13378404]
[1734754356597,0.00264002,97516.0,97511.0,0.24491205]
[1734754356791,0.412103,97512.0,97511.0,0.24491205]
[1734754356996,0.051306,97507.0,97506.0,0.24491205]
[1734754357405,0.05394602,97507.0,97506.0,0.24491205]
[1734754358204,0.051308,97503.0,97502.0,0.00153835]
[1734754358501,0.41474802,97503.0,97502.0,0.00153835]
[1734754360303,0.051313,97494.0,97493.0,0.24491205]
[1734754360503,0.412113,97494.0,97493.0,0.24491205]
[1734754360700,0.41475302,97494.0,97493.0,0.24491205]
[1734754360903,0.41475302,97494.0,97489.0,0.24491205]
[1734754360904,0.051315,97490.0,97489.0,0.24491205]
[1734754361303,0.05395502,97490.0,97489.0,0.24491205]
[1734754362201,0.051317,97487.0,97483.0,0.24491205]
[1734754362503,0.36236001,97494.0,97484.0,0.01097277]
[1734754362504,0.051317,97486.0,97484.0,0.01097277]
[1734754362696,0.051317,97486.0,97485.0,0.01097277]
[1734754363095,0.051317,97486.0,97485.0,0.01097209]
[1734754363606,0.052317,97486.0,97485.0,0.01097209]
[1734754364199,0.052317,97486.0,97483.0,0.24491205]
[1734754364400,0.052317,97486.0,97481.0,0.01043862]
[1734754364401,0.052317,97486.0,97482.0,0.24491205]
[1734754365807,0.052317,97486.0,97480.0,0.24491205]
[1734754366110,0.00264002,97481.0,97480.0,0.24491205]
[1734754368205,0.00264002,97481.0,97479.0,0.06176781]
[1734754368408,0.051318,97485.0,97479.0,0.06176781]
[1734754368798,0.051318,97485.0,97484.0,4e-05]
[1734754370211,0.052318,97485.0,97484.0,4e-05]
[1734754375512,0.051318,97485.0,97484.0,4e-05]
[1734754375704,0.052318,97485.0,97484.0,4e-05]
[1734754376100,0.051318,97485.0,97484.0,4e-05]
[1734754376299,0.052318,97485.0,97484.0,4e-05]
[1734754382417,0.3608,97489.0,97485.0,0.051318]
[1734754382709,0.3608,97489.0,97488.0,4e-05]
[1734754386020,0.3618,97489.0,97488.0,4e-05]
[1734754386405,0.3608,97489.0,97488.0,0.01107024]
[1734754386608,0.3618,97489.0,97488.0,0.01107024]
[1734754386921,0.48449464,97489.0,97488.0,4e-05]
[1734754388319,0.3618,97489.0,97488.0,4e-05]
[1734754389308,0.3618,97489.0,97488.0,0.01106185]
[1734754389813,0.3608,97489.0,97488.0,0.01106185]
[1734754390013,0.3618,97489.0,97488.0,0.01106185]
[1734754390211,0.001,97489.0,97488.0,0.01106185]
[1734754390519,0.15280951,97491.0,97489.0,0.051316]
[1734754390716,0.15280951,97491.0,97490.0,0.01102185]
[1734754390918,0.15280951,97491.0,97490.0,0.01106185]
[1734754391313,0.051314,97492.0,97490.0,0.01106185]
[1734754391515,0.051314,97492.0,97491.0,0.01102185]
[1734754391719,0.051314,97492.0,97491.0,0.01106185]
[1734754392015,0.15280951,97494.0,97492.0,0.051314]
[1734754392213,0.15280951,97494.0,97493.0,0.01105378]
[1734754392407,0.15280951,97494.0,97493.0,0.01109378]
[1734754393120,0.15280951,97497.0,97493.0,0.01109378]
[1734754393312,0.15280951,97497.0,97496.0,0.051312]
[1734754393618,0.15280951,97497.0,97496.0,0.06240578]
[1734754394620,0.15280951,97497.0,97496.0,0.06240865]
[1734754394834,0.09224139,97499.0,97496.0,0.01109665]
[1734754395023,0.09224139,97499.0,97497.0,0.06236765]
[1734754395319,0.09224139,97499.0,97498.0,0.37189665]
[1734754396115,0.09224139,97500.0,97499.0,0.05131]
[1734754396306,0.09224139,97500.0,97499.0,0.06236665]
[1734754396506,0.09224139,97500.0,97499.0,0.06240665]
[1734754396916,0.09224139,97500.0,97499.0,0.05135]
[1734754397124,0.09224139,97500.0,97499.0,0.06239189]
[1734754397625,0.09324139,97500.0,97499.0,0.06239189]
[1734754398016,0.001,97500.0,97499.0,0.06239189]
[1734754400827,0.001,97500.0,97499.0,0.06238168]
[1734754401014,0.001,97500.0,97499.0,0.06238165]
[1734754401419,0.001,97500.0,97499.0,0.07246147]
[1734754401929,0.001,97500.0,97499.0,0.10526147]
[1734754402331,0.001,97500.0,97499.0,0.10626147]
[1734754402727,0.09224139,97510.0,97508.0,0.051305]
[1734754403133,0.09224139,97510.0,97509.0,4e-05]
[1734754403434,0.3608,97512.0,97510.0,0.051305]
[1734754403927,0.3608,97512.0,97511.0,4e-05]
[1734754404122,0.081901,97516.0,97511.0,0.051344]
[1734754404627,0.081901,97516.0,97512.0,4e-05]
[1734754405440,0.09224139,97518.0,97512.0,4e-05]
[1734754405625,0.09224139,97518.0,97512.0,0.01110934]
[1734754405820,0.3608,97519.0,97512.0,0.01110934]
[1734754405821,0.0314,97513.0,97512.0,0.01110934]
[1734754406428,0.001,97513.0,97512.0,0.37190934]
[1734754407032,0.09224139,97519.0,97518.0,0.0513]
[1734754407232,0.09224139,97519.0,97518.0,0.06236934]
[1734754407427,0.09224139,97519.0,97518.0,0.06240934]
[1734754407629,0.12474139,97526.0,97518.0,0.01110934]
[1734754407829,0.12474139,97526.0,97522.0,0.051298]
[1734754408033,0.12474139,97526.0,97523.0,4e-05]
[1734754408831,0.0325,97526.0,97523.0,4e-05]
[1734754409126,0.0325,97526.0,97523.0,0.00104]
[1734754409127,0.0341,97524.0,97523.0,0.00104]
[1734754413942,0.0341,97524.0,97523.0,0.01116974]
[1734754414535,0.001,97524.0,97523.0,0.01116974]
[1734754419655,0.0325,97526.0,97524.0,0.051297]
[1734754419949,0.0325,97526.0,97525.0,4e-05]
[1734754421348,0.0335,97526.0,97525.0,4e-05]
[1734754422146,0.0335,97526.0,97525.0,0.01112372]
[1734754422442,0.0325,97526.0,97525.0,4e-05]
[1734754422649,0.0335,97526.0,97525.0,4e-05]
[1734754423554,0.0335,97526.0,97525.0,0.0111176]
[1734754423746,0.0335,97526.0,97525.0,4e-05]
[1734754424454,0.001,97526.0,97525.0,0.01112014]
[1734754425675,0.001,97526.0,97525.0,0.01110895]
[1734754427474,0.0331,97537.0,97525.0,0.01110895]
[1734754427671,0.0331,97537.0,97527.0,0.06627647]
[1734754427862,0.0331,97537.0,97536.0,4e-05]
[1734754428971,0.0341,97537.0,97536.0,0.052331]
[1734754430476,0.0341,97537.0,97536.0,0.06337229]
[1734754433363,0.0341,97537.0,97536.0,0.06339361]
[1734754436178,0.0341,97537.0,97536.0,0.07357496]
[1734754438981,0.0341,97537.0,97536.0,0.06339361]
[1734754440485,0.0341,97537.0,97536.0,0.06339643]
[1734754442487,0.0341,97537.0,97536.0,0.06341287]
[1734754443375,0.0341,97537.0,97536.0,0.06341593]
[1734754444191,0.0341,97537.0,97536.0,0.052331]
[1734754445083,0.0341,97537.0,97536.0,0.06406673]
[1734754445279,0.0341,97537.0,97536.0,0.052331]
[1734754445485,0.0341,97537.0,97536.0,0.06406807]
[1734754445785,0.0341,97537.0,97536.0,0.06406982]
[1734754446672,0.0341,97537.0,97536.0,0.01277882]
[1734754446984,0.067,97537.0,97536.0,0.01257909]
[1734754447178,0.067,97537.0,97536.0,0.00104]
[1734754450882,0.4278,97537.0,97536.0,0.00104]
[1734754451073,0.4378985,97537.0,97536.0,0.00104]
[1734754456888,0.4378985,97537.0,97536.0,4e-05]
[1734754457791,0.4378985,97537.0,97521.0,0.25385416]
[1734754458090,0.3608,97527.0,97522.0,0.01134518]
[1734754458290,0.3608,97527.0,97523.0,0.01134518]
[1734754458492,0.051296,97526.0,97524.0,0.01134518]
[1734754458693,0.051296,97526.0,97525.0,0.01134518]
[1734754459679,0.053296,97526.0,97525.0,0.01134518]
[1734754460095,0.051296,97526.0,97525.0,0.01134518]
[1734754460297,0.053296,97526.0,97525.0,0.01134518]
[1734754463702,0.0513,97519.0,97518.0,0.24482268]
[1734754463996,0.0513,97519.0,97518.0,0.25616619]
[1734754464889,0.0523,97519.0,97518.0,0.26630645]
[1734754465189,0.0523,97519.0,97518.0,0.02148377]
[1734754465889,0.0523,97519.0,97518.0,0.0212508]
[1734754466100,0.001,97519.0,97518.0,0.0212508]
[1734754467495,0.001,97519.0,97518.0,0.02129506]
[1734754470403,0.001,97519.0,97518.0,0.04015156]
[1734754470897,0.12292868,97528.0,97518.0,0.40095156]
[1734754471097,0.12292868,97528.0,97527.0,0.412096]
[1734754471296,0.12292868,97528.0,97527.0,0.4421473]
[1734754471796,0.12292868,97528.0,97527.0,0.0813473]
[1734754472196,0.12292868,97528.0,97527.0,0.06311647]
[1734754472407,0.12492868,97528.0,97527.0,0.06311647]
[1734754472604,0.002,97528.0,97527.0,0.36981787]
[1734754473492,0.002,97528.0,97527.0,0.30838042]
[1734754475803,0.002,97528.0,97527.0,0.25708442]
[1734754478104,0.12492868,97528.0,97527.0,0.19584727]
[1734754479206,0.12492868,97528.0,97527.0,0.01182047]
[1734754480209,0.12492868,97528.0,97527.0,0.01142512]
[1734754480402,0.12492868,97528.0,97527.0,4e-05]
[1734754480602,0.002,97528.0,97527.0,4e-05]
[1734754481099,0.002,97528.0,97527.0,0.01142527]
[1734754481305,0.002,97528.0,97527.0,4e-05]
[1734754482211,0.002,97528.0,97527.0,0.01142458]
[1734754482612,0.002,97528.0,97527.0,4e-05]
[1734754483300,0.002,97528.0,97527.0,0.01143227]
[1734754486918,0.002,97528.0,97527.0,0.19547812]
[1734754488217,0.002,97528.0,97527.0,4e-05]
[1734754489316,0.3628,97528.0,97527.0,4e-05]
[1734754490324,0.3628,97528.0,97527.0,0.01148812]
[1734754490520,0.51646085,97528.0,97527.0,4e-05]
[1734754490709,0.51646085,97528.0,97527.0,0.01148727]
[1734754491616,0.51646085,97528.0,97527.0,0.01149233]
[1734754491917,0.3628,97528.0,97527.0,0.01149233]
[1734754495014,0.3628,97528.0,97523.0,0.18404585]
[1734754495220,0.051297,97524.0,97523.0,0.18404585]
[1734754495423,0.051297,97524.0,97519.0,0.24526395]
[1734754495720,0.412099,97520.0,97519.0,0.24526395]
[1734754496921,0.56575985,97520.0,97519.0,0.24526395]
[1734754497125,0.051302,97514.0,97513.0,0.18406815]
[1734754497317,0.051302,97514.0,97513.0,0.1955365]
[1734754498322,0.17425624,97514.0,97513.0,0.01246835]
[1734754498523,0.17425624,97514.0,97513.0,0.01346835]
[1734754499320,0.17425624,97514.0,97513.0,0.002]
[1734754501916,0.17425624,97514.0,97513.0,0.01319718]
[1734754502327,0.12295424,97514.0,97513.0,0.002]
[1734754502520,0.15366085,97522.0,97521.0,0.051299]
[1734754502915,0.15366085,97523.0,97521.0,0.06254265]
[1734754503124,0.15366085,97523.0,97522.0,0.01120365]
[1734754503330,0.15366085,97523.0,97522.0,0.01124365]
[1734754504314,0.36140001,97528.0,97522.0,0.01124365]
[1734754504618,0.3608,97528.0,97527.0,0.051336]
[1734754504923,0.3608,97528.0,97527.0,0.06253965]
[1734754505627,0.3608,97528.0,97527.0,0.06253128]
[1734754506328,0.051294,97531.0,97527.0,0.06253128]
[1734754506531,0.051294,97531.0,97528.0,0.01119528]
[1734754506723,0.051294,97531.0,97530.0,4e-05]
[1734754506921,0.051294,97531.0,97530.0,0.01123528]
[1734754507125,0.051294,97531.0,97530.0,4e-05]
[1734754507429,0.051294,97531.0,97530.0,0.18386061]
[1734754508521,0.052294,97531.0,97530.0,0.18386061]
[1734754508828,0.117994,97531.0,97530.0,4e-05]
[1734754516734,0.839594,97531.0,97530.0,4e-05]
[1734754517532,0.117994,97531.0,97530.0,4e-05]
[1734754517728,0.839594,97531.0,97530.0,4e-05]
[1734754519431,0.773894,97531.0,97530.0,4e-05]
[1734754519630,0.413094,97531.0,97530.0,4e-05]
[1734754522831,0.412094,97531.0,97530.0,4e-05]
[1734754523032,0.413094,97531.0,97530.0,4e-05]
[1734754526933,0.412094,97531.0,97530.0,4e-05]
[1734754527140,0.413094,97531.0,97530.0,4e-05]
[1734754528040,0.412094,97531.0,97530.0,4e-05]
[1734754528241,0.413094,97531.0,97530.0,4e-05]
[1734754530335,0.413094,97531.0,97530.0,0.051334]
[1734754530336,0.3618,97531.0,97530.0,0.051334]
[1734754530545,0.001,97531.0,97530.0,0.06244808]
[1734754531340,0.15360705,97541.0,97538.0,0.05129]
[1734754531845,0.051288,97542.0,97540.0,4e-05]
[1734754532149,0.051288,97542.0,97541.0,4e-05]
[1734754533734,0.051288,97542.0,97541.0,0.00104]
[1734754534144,0.051288,97542.0,97541.0,0.052328]
[1734754540751,0.051288,97542.0,97541.0,0.00104]
[1734754545147,0.051288,97542.0,97538.0,0.05129]
[1734754545354,0.02310318,97542.0,97541.0,0.01101249]
[1734754545549,0.02310318,97542.0,97533.0,0.18366604]
[1734754545550,0.35679527,97545.0,97533.0,0.11002313]
[1734754545755,0.21060435,97545.0,97538.0,0.05129]
[1734754545950,0.051284,97549.0,97544.0,4e-05]
[1734754546249,0.01004769,97551.0,97540.0,0.051289]
[1734754546250,0.051285,97547.0,97540.0,0.051289]
[1734754546450,0.04822465,97546.0,97539.0,0.05985847]
[1734754546763,0.04822465,97545.0,97538.0,0.05129]
[1734754547053,0.02867494,97544.0,97540.0,0.051289]
[1734754547261,0.04822465,97543.0,97540.0,0.051289]
[1734754547549,0.02867494,97542.0,97540.0,0.051289]
[1734754547853,0.02867494,97541.0,97540.0,0.051289]
[1734754548153,0.04822465,97541.0,97540.0,0.051289]
[1734754548745,0.04822465,97541.0,97540.0,0.052289]
[1734754551156,0.04822465,97541.0,97535.0,0.06627647]
[1734754551352,0.02867494,97540.0,97534.0,0.02138603]
[1734754551554,0.04822465,97539.0,97534.0,0.19958829]
[1734754551751,0.04822465,97538.0,97534.0,0.11623104]
[1734754551953,0.02867494,97537.0,97535.0,0.051291]
[1734754552153,0.04822465,97536.0,97535.0,0.02123762]
[1734754552850,0.04822465,97536.0,97534.0,0.002]
[1734754553053,0.02867494,97535.0,97534.0,0.053292]
[1734754553249,0.01954971,97535.0,97534.0,0.054292]
[1734754553450,0.01954971,97535.0,97534.0,0.07933543]
[1734754554048,0.09219308,97536.0,97534.0,0.07933543]
[1734754554250,0.09219308,97536.0,97535.0,0.02704343]
[1734754554647,0.09219308,97536.0,97535.0,0.02708343]
[1734754554946,0.051288,97542.0,97535.0,0.07837443]
[1734754555147,0.051288,97542.0,97536.0,0.01040132]
[1734754555455,0.051288,97542.0,97541.0,4e-05]
[1734754555650,0.051288,97542.0,97541.0,0.01025799]
[1734754556663,0.052288,97542.0,97541.0,0.01025799]
[1734754557560,0.052288,97542.0,97541.0,0.01026132]
[1734754558952,0.052288,97542.0,97541.0,4e-05]
[1734754561257,0.10215496,97542.0,97541.0,4e-05]
[1734754561652,0.10215496,97542.0,97541.0,0.00957002]
[1734754562665,0.051295,97529.0,97528.0,0.3067014]
[1734754562862,0.051295,97529.0,97528.0,0.00953702]
[1734754562863,0.412095,97529.0,97528.0,0.00953702]
[1734754563363,0.05086696,97542.0,97528.0,0.00953702]
[1734754563364,0.051291,97536.0,97528.0,0.37033702]
[1734754563568,0.05086696,97542.0,97529.0,0.05579254]
[1734754563754,0.05086696,97542.0,97532.0,0.13255294]
[1734754563959,0.05086696,97542.0,97533.0,0.02479254]
[1734754564165,0.15378019,97539.0,97534.0,0.07608354]
[1734754564357,0.15378019,97539.0,97536.0,0.051291]
[1734754564661,0.15378019,97539.0,97537.0,0.00953702]
[1734754564860,0.15378019,97539.0,97538.0,0.00953702]
[1734754565457,0.5663872,97543.0,97536.0,0.051291]
[1734754565657,0.56586719,97543.0,97537.0,0.00936216]
[1734754565861,0.56586719,97543.0,97542.0,4e-05]
[1734754566159,0.56586719,97543.0,97542.0,0.00940216]
[1734754566867,0.412087,97543.0,97542.0,0.00940216]
[1734754568362,0.413087,97543.0,97542.0,0.00940216]
[1734754570359,0.413087,97543.0,97542.0,0.02084108]
[1734754570965,0.413087,97543.0,97542.0,0.03117224]
[1734754572261,0.412087,97543.0,97542.0,0.03117224]
[1734754572469,0.413087,97543.0,97542.0,0.03117224]
[1734754574066,0.413087,97543.0,97542.0,0.03116553]
[1734754575880,0.3618,97543.0,97542.0,0.03116553]
[1734754577468,0.3608,97543.0,97542.0,0.03116553]
[1734754577673,0.3618,97543.0,97542.0,0.03116553]
[1734754579662,0.413087,97543.0,97542.0,0.02082627]
[1734754579867,0.413087,97543.0,97542.0,0.02085811]
[1734754580678,0.413087,97543.0,97542.0,0.01150425]
[1734754581781,0.3618,97543.0,97542.0,0.01150425]
[1734754582079,0.3608,97543.0,97542.0,0.01150425]
[1734754582275,0.3618,97543.0,97542.0,0.01150425]
[1734754583079,0.3618,97543.0,97542.0,0.02049758]
[1734754583283,0.3618,97543.0,97542.0,0.020497]
[1734754583470,0.48477087,97543.0,97542.0,0.020497]
[1734754584174,0.12297087,97543.0,97542.0,0.020497]
[1734754584379,0.12397087,97543.0,97542.0,0.03889915]
[1734754584972,0.001,97543.0,97542.0,0.09018715]
[1734754585771,0.001,97543.0,97542.0,0.0901921]
[1734754586484,0.001,97543.0,97542.0,0.0901893]
[1734754586978,0.09220891,97546.0,97542.0,0.0389013]
[1734754587182,0.09220891,97546.0,97545.0,0.051286]
[1734754587368,0.09220891,97546.0,97545.0,0.07180665]
[1734754588184,0.001,97546.0,97545.0,0.07180665]
[1734754588375,0.001,97546.0,97545.0,0.07179531]
[1734754591285,0.12297087,97550.0,97548.0,0.051284]
[1734754591474,0.48377087,97550.0,97549.0,0.01147656]
[1734754591672,0.48377087,97550.0,97549.0,0.01150713]
[1734754591872,0.3608,97550.0,97549.0,0.01150713]
[1734754593781,0.3618,97550.0,97549.0,0.01150713]
[1734754594179,0.3608,97550.0,97549.0,0.01150713]
[1734754594481,0.3618,97550.0,97549.0,0.01150713]
[1734754594685,0.3618,97550.0,97549.0,0.01151207]
[1734754595073,0.3618,97550.0,97549.0,0.0204966]
[1734754595274,0.3608,97550.0,97549.0,0.0204966]
[1734754595473,0.3618,97550.0,97549.0,0.0204966]
[1734754596476,0.3618,97550.0,97549.0,0.01151207]
[1734754600284,0.3618,97550.0,97549.0,0.02049971]
[1734754600983,0.3618,97550.0,97549.0,0.02049712]
[1734754601581,0.3618,97550.0,97549.0,0.01150948]
[1734754602300,0.3618,97550.0,97549.0,0.02049161]
[1734754602585,0.3618,97550.0,97549.0,0.03088448]
[1734754602789,0.3618,97550.0,97549.0,0.03986666]
[1734754603385,0.3608,97550.0,97549.0,0.03986666]
[1734754603591,0.3618,97550.0,97549.0,0.04050422]
[1734754603989,0.48478519,97550.0,97549.0,0.04050422]
[1734754605093,0.3618,97550.0,97549.0,0.04050422]
[1734754606187,0.3618,97550.0,97549.0,0.0283618]
[1734754606388,0.3618,97550.0,97549.0,0.0314655]
[1734754607093,0.3618,97550.0,97549.0,0.00901133]
[1734754607696,0.3618,97550.0,97549.0,0.03147354]
[1734754607891,0.3618,97550.0,97549.0,0.04044429]
[1734754608285,0.3618,97550.0,97549.0,0.04043913]
[1734754611382,0.3618,97550.0,97549.0,0.04042341]
[1734754613893,0.3618,97550.0,97549.0,0.04044339]
[1734754614594,0.3618,97550.0,97549.0,0.28579241]
[1734754616888,0.3608,97550.0,97549.0,0.28533164]
[1734754617088,0.3618,97550.0,97549.0,0.28533164]
[1734754620399,0.3618,97550.0,97549.0,0.28658739]
[1734754620603,0.3608,97550.0,97549.0,0.28658739]
[1734754620803,0.3618,97550.0,97549.0,0.28658739]
[1734754621695,0.3608,97550.0,97549.0,0.28658739]
[1734754621897,0.3618,97550.0,97549.0,0.28658739]
[1734754622203,0.48483859,97550.0,97549.0,0.04123837]
[1734754623111,0.48483859,97550.0,97549.0,0.05557009]
[1734754623708,0.48383859,97550.0,97549.0,0.05557009]
[1734754623894,0.48483859,97550.0,97549.0,0.05557009]
[1734754624299,0.48383859,97550.0,97549.0,0.05557009]
[1734754624500,0.48483859,97550.0,97549.0,0.05557009]
[1734754625409,0.3618,97550.0,97549.0,0.05557009]
[1734754625803,0.001,97550.0,97549.0,0.05557009]
[1734754626508,0.001,97550.0,97549.0,0.41637009]
[1734754627705,0.12301233,97552.0,97550.0,0.051284]
[1734754627910,0.12301233,97552.0,97551.0,0.05550999]
[1734754628111,0.12301233,97552.0,97551.0,0.05554999]
[1734754628807,0.12301233,97552.0,97551.0,0.10683299]
[1734754628808,0.09224051,97552.0,97551.0,0.10683299]
[1734754629701,0.09324051,97552.0,97551.0,0.10683299]
[1734754630713,0.09324051,97552.0,97551.0,0.10682785]
[1734754630908,0.09324051,97552.0,97551.0,0.10580768]
[1734754633713,0.09324051,97552.0,97551.0,0.46660768]
[1734754635410,0.001,97552.0,97551.0,0.46660768]
[1734754635610,0.001,97552.0,97551.0,0.47950933]
[1734754636498,0.001,97552.0,97551.0,0.47906217]
[1734754637713,0.001,97552.0,97551.0,0.44826904]
[1734754637913,0.001,97552.0,97551.0,0.47904104]
[1734754639414,0.001,97552.0,97551.0,0.47903324]
[1734754640003,0.001,97552.0,97551.0,0.7748613]
[1734754640413,0.09224051,97561.0,97560.0,0.051279]
[1734754640614,0.09224051,97561.0,97560.0,0.09098335]
[1734754640819,0.09224051,97561.0,97560.0,0.09102335]
[1734754641317,0.12298735,97566.0,97560.0,0.09102335]
[1734754641318,0.09224051,97562.0,97560.0,0.09102335]
[1734754641616,0.09224051,97562.0,97561.0,0.03969256]
[1734754642419,0.09224051,97562.0,97561.0,0.03976478]
[1734754643809,0.09224051,97562.0,97561.0,0.04076478]
[1734754644909,0.45304051,97562.0,97561.0,0.04076478]
[1734754645208,0.3608,97562.0,97561.0,0.04076478]
[1734754645912,0.09224051,97563.0,97562.0,0.051278]
[1734754646225,0.09224051,97563.0,97562.0,0.09100278]
[1734754646904,0.3608,97564.0,97562.0,0.09104278]
[1734754647109,0.3608,97564.0,97563.0,0.03972478]
[1734754647309,0.3608,97564.0,97563.0,0.03976478]
[1734754647521,0.3608,97564.0,97563.0,0.02082039]
[1734754647705,0.3608,97564.0,97563.0,0.01188024]
[1734754648314,0.48378735,97564.0,97563.0,4e-05]
[1734754648525,0.48378735,97564.0,97563.0,0.011621]
[1734754648708,0.48378735,97564.0,97557.0,0.24491078]
[1734754648910,0.3608,97558.0,97541.0,0.35261572]
[1734754649106,0.412088,97552.0,97551.0,0.25623847]
[1734754649310,0.412088,97552.0,97551.0,0.15643847]
[1734754649919,0.412088,97552.0,97545.0,0.37987242]
[1734754649920,0.051291,97546.0,97545.0,0.01285753]
[1734754650123,0.3608,97552.0,97540.0,0.06627647]
[1734754650124,0.3608,97548.0,97540.0,0.06627647]
[1734754650316,0.051293,97543.0,97540.0,0.06627647]
[1734754650621,0.051293,97543.0,97534.0,0.051297]
[1734754650811,0.3608,97536.0,97534.0,0.051297]
[1734754651923,0.3608,97536.0,97534.0,0.06423498]
[1734754652324,0.3608,97536.0,97534.0,0.06623498]
[1734754652917,0.09212118,97535.0,97534.0,0.06923498]
[1734754653917,0.3608,97536.0,97534.0,0.06923498]
[1734754654524,0.3608,97536.0,97535.0,0.03]
[1734754656515,0.3608,97536.0,97535.0,0.032]
[1734754656820,0.3608,97536.0,97535.0,0.004]
[1734754657015,0.051307,97515.0,97509.0,0.05131]
[1734754657210,0.051307,97515.0,97510.0,0.00877923]
[1734754657424,0.051307,97515.0,97511.0,0.00877923]
[1734754657621,0.051309,97513.0,97512.0,0.00877923]
[1734754657821,0.3608,97519.0,97507.0,0.36701489]
[1734754658124,0.3608,97508.0,97507.0,0.37921941]
[1734754658922,0.3608,97508.0,97497.0,0.0308]
[1734754659123,0.3608,97508.0,97501.0,0.04357258]
[1734754659325,0.051312,97507.0,97501.0,0.04357258]
[1734754659518,0.051312,97506.0,97501.0,0.04357258]
[1734754659922,0.051313,97504.0,97501.0,0.04357258]
[1734754660129,0.051313,97504.0,97501.0,0.05257258]
[1734754660528,0.72212001,97508.0,97501.0,0.05857258]
[1734754660728,0.051314,97502.0,97501.0,0.05857258]
[1734754660935,0.051314,97502.0,97501.0,0.02727258]
[1734754661327,0.051314,97502.0,97501.0,0.02127258]
[1734754661529,0.051314,97502.0,97501.0,0.02727258]
[1734754662632,0.051314,97502.0,97501.0,0.01827258]
[1734754662829,0.051314,97502.0,97501.0,0.009]
[1734754663034,0.051314,97502.0,97501.0,0.014]
[1734754663430,0.051314,97502.0,97491.0,0.0325]
[1734754663431,0.051314,97502.0,97490.0,0.00153838]
[1734754663737,0.7216,97491.0,97482.0,0.033]
[1734754663928,0.412124,97483.0,97482.0,0.033]
[1734754665929,0.413124,97483.0,97482.0,0.042]
[1734754666829,0.413124,97483.0,97482.0,0.009]
[1734754667031,0.413124,97483.0,97482.0,0.013]
[1734754667738,0.413124,97483.0,97482.0,0.009]
[1734754667939,0.417124,97483.0,97482.0,0.009]
[1734754668543,0.425124,97483.0,97482.0,0.001]
[1734754669742,0.421124,97483.0,97482.0,0.001]
[1734754669945,0.425124,97483.0,97482.0,0.001]
[1734754670145,0.051327,97478.0,97474.0,0.01238851]
[1734754670347,0.3608,97475.0,97472.0,0.0311]
[1734754670643,0.3608,97475.0,97472.0,0.04311585]